fUST/lending_fUST_20251004
["ID","MTS","AMOUNT","RATE_DAILY","PERIOD"]
[389159170,1759593071915,-151.0,0.00021643,2]
[389159171,1759593071925,-151.0,0.00021643,2]
[389159172,1759593071934,-545.28,0.00021643,2]
[389159173,1759593071943,-151.0,0.00021643,2]
[389159174,1759593071953,-1261.68,0.00021643,2]
[389159175,1759593071963,-500.0,0.00021643,2]
[389159176,1759593071972,-500.0,0.00021643,2]
[389159177,1759593071982,-3676.63,0.00021643,2]
[389159178,1759593071991,-568.41,0.00021643,2]
[389159179,1759593072000,-637.38,0.00021643,2]
[389159180,1759593072010,-500.0,0.00021643,2]
[389159181,1759593072020,-500.0,0.00021643,2]
[389159182,1759593072029,-151.0,0.00021643,2]
[389159183,1759593072038,-151.0,0.00021643,2]
[389159184,1759593072047,-151.0,0.00021643,2]
[389159185,1759593072056,-500.0,0.00021643,2]
[389159186,1759593072066,-500.0,0.00021643,2]
[389159187,1759593072075,-500.0,0.00021643,2]
[389159188,1759593072084,-637.084551,0.00021643,2]
[389159189,1759593072094,-637.084551,0.00021643,2]
[389159190,1759593072103,-548.38,0.00021643,2]
[389159191,1759593072113,-637.084551,0.00021643,2]
[389159192,1759593072124,-637.084551,0.00021643,2]
[389159193,1759593072134,-3208.65,0.00021643,2]
[389159194,1759593072145,-500.0,0.00021643,2]
[389159195,1759593072155,-1279.41,0.00021643,2]
[389159196,1759593072164,-685.52,0.00021643,2]
[389159197,1759593072174,-643.26,0.00021643,2]
[389159198,1759593072184,-151.0,0.00021643,2]
[389159199,1759593072193,-461.91029756,0.00021643,2]
[389159200,1759593072203,-500.0,0.00021643,2]
[389159201,1759593072212,-151.0,0.00021643,2]
[389159202,1759593072221,-5094.83,0.00021643,2]
[389159203,1759593072231,-1655.05,0.00021643,2]
[389159204,1759593072240,-1432.98,0.00021643,2]
[389159205,1759593072250,-967.26,0.00021643,2]
[389159206,1759593072260,-373.9805908,0.00021643,2]
[389159207,1759593072270,-220.335232,0.00021643,2]
[389159208,1759593072279,-500.0,0.00021643,2]
[389159209,1759593072289,-4495.31,0.00021643,2]
[389159210,1759593072298,-4031.17,0.00021643,2]
[389159211,1759593072307,-500.0,0.00021643,2]
[389159212,1759593072316,-5060.59,0.00021643,2]
[389159213,1759593072326,-151.0,0.00021643,2]
[389159214,1759593072335,-151.0,0.00021643,2]
[389159215,1759593072344,-151.0,0.00021643,2]
[389159216,1759593072354,-151.0,0.00021643,2]
[389159217,1759593072363,-4043.69,0.00021643,2]
[389159218,1759593072374,-168.241434,0.00021643,2]
[389159219,1759593072383,-500.0,0.00021643,2]
[389159220,1759593072392,-168.241434,0.00021643,2]
[389159221,1759593072401,-151.0,0.00021643,2]
[389159222,1759593072415,-168.241434,0.00021643,2]
[389159223,1759593072425,-151.0,0.00021643,2]
[389159224,1759593072434,-168.241434,0.00021643,2]
[389159225,1759593072445,-365.846877,0.00021643,2]
[389159226,1759593072454,-266.485965,0.00021643,2]
[389159227,1759593072463,-365.846877,0.00021643,2]
[389159228,1759593072472,-500.0,0.00021643,2]
[389159229,1759593072483,-365.846877,0.00021643,2]
[389159230,1759593072492,-1469.96,0.00021643,2]
[389159231,1759593072501,-365.846877,0.00021643,2]
[389159232,1759593072510,-500.0,0.00021643,2]
[389159233,1759593072519,-632.58,0.00021643,2]
[389159234,1759593072529,-500.0,0.00021643,2]
[389159235,1759593072538,-500.0,0.00021643,2]
[389159236,1759593072547,-299.38,0.00021643,2]
[389159237,1759593072557,-1264.74,0.00021643,2]
[389159238,1759593072567,-151.0,0.00021643,2]
[389159239,1759593072576,-1639.5,0.00021643,2]
[389159240,1759593072586,-834.51,0.00021643,2]
[389159241,1759593072595,-151.0,0.00021643,2]
[389159242,1759593072604,-151.0,0.00021643,2]
[389159243,1759593072613,-509.86,0.00021643,2]
[389159244,1759593072623,-573.11,0.00021643,2]
[389159245,1759593072631,-4288.81,0.00021643,2]
[389159246,1759593072641,-2260.03,0.00021643,2]
[389159247,1759593072651,-614.86,0.00021643,2]
[389159248,1759593072660,-572.78,0.00021643,2]
[389159249,1759593072670,-151.0,0.00021643,2]
[389159250,1759593072679,-151.0,0.00021643,2]
[389159251,1759593072689,-151.0,0.00021643,2]
[389159252,1759593072699,-982.23,0.00021643,2]
[389159253,1759593072709,-500.0,0.00021643,2]
[389159254,1759593072719,-861.39,0.00021643,2]
[389159255,1759593072729,-711.3,0.00021643,2]
[389159256,1759593072738,-745.87,0.00021643,2]
[389159257,1759593072748,-1169.22,0.00021643,2]
[389159258,1759593072756,-769.58,0.00021643,2]
[389159259,1759593072767,-1039.1,0.00021643,2]
[389159260,1759593072776,-151.0,0.00021643,2]
[389159261,1759593072785,-586.44,0.00021643,2]
[389159262,1759593072795,-500.0,0.00021643,2]
[389159263,1759593072803,-5376.96,0.00021643,2]
[389159264,1759593072813,-2325.11,0.00021643,2]
[389159265,1759593072822,-500.0,0.00021643,2]
[389159266,1759593072831,-1184.17,0.00021643,2]
[389159267,1759593072840,-500.0,0.00021643,2]
[389159268,1759593072850,-2810.27,0.00021643,2]
[389159269,1759593072859,-500.0,0.00021643,2]
[389159270,1759593072869,-500.0,0.00021643,2]
[389159271,1759593072879,-628.79,0.00021643,2]
[389159272,1759593072888,-570.71,0.00021643,2]
[389159273,1759593072899,-761.94,0.00021643,2]
[389159274,1759593072909,-764.12,0.00021643,2]
[389159275,1759593072918,-1631.41,0.00021643,2]
[389159276,1759593072927,-1495.3,0.00021643,2]
[389159277,1759593072936,-2092.97,0.00021643,2]
[389159278,1759593072946,-1174.21,0.00021643,2]
[389159279,1759593072956,-500.0,0.00021643,2]
[389159280,1759593072965,-663.28,0.00021643,2]
[389159281,1759593072974,-1969.15,0.00021643,2]
[389159282,1759593072983,-1062.03,0.00021643,2]
[389159283,1759593072993,-680.83,0.00021643,2]
[389159284,1759593073002,-596.45,0.00021643,2]
[389159285,1759593073011,-5236.69,0.00021643,2]
[389159286,1759593073021,-2706.53,0.00021643,2]
[389159287,1759593073030,-722.39,0.00021643,2]
[389159288,1759593073040,-676.08,0.00021643,2]
[389159289,1759593073049,-500.0,0.00021643,2]
[389159290,1759593073058,-622.6,0.00021643,2]
[389159291,1759593073067,-500.0,0.00021643,2]
[389159292,1759593073077,-596.04,0.00021643,2]
[389159293,1759593073086,-770.23,0.00021643,2]
[389159294,1759593073096,-1625.7,0.00021643,2]
[389159295,1759593073106,-1512.93,0.00021643,2]
[389159296,1759593073115,-5806.93,0.00021643,2]
[389159297,1759593073124,-667.12,0.00021643,2]
[389159298,1759593073133,-500.0,0.00021643,2]
[389159299,1759593073142,-1495.05,0.00021643,2]
[389159300,1759593073151,-1031.66,0.00021643,2]
[389159301,1759593073161,-500.0,0.00021643,2]
[389159302,1759593073170,-500.0,0.00021643,2]
[389159303,1759593073180,-4277.11,0.00021643,2]
[389159304,1759593073189,-1104.08,0.00021643,2]
[389159305,1759593073199,-2219.31,0.00021643,2]
[389159306,1759593073209,-959.24,0.00021643,2]
[389159307,1759593073218,-500.0,0.00021643,2]
[389159308,1759593073228,-942.05,0.00021643,2]
[389159309,1759593073238,-645.52,0.00021643,2]
[389159310,1759593073247,-4584.92,0.00021643,2]
[389159311,1759593073256,-500.0,0.00021643,2]
[389159312,1759593073266,-3358.07,0.00021643,2]
[389159313,1759593073275,-500.0,0.00021643,2]
[389159314,1759593073284,-2066.69,0.00021643,2]
[389159315,1759593073293,-500.0,0.00021644,2]
[389159316,1759593073302,-500.0,0.00021645,2]
[389159317,1759593073311,-500.0,0.00021645,2]
[389159318,1759593073320,-612.80898852,0.00021645,2]
[389159319,1759593073489,-500.0,0.00021645,2]
[389159320,1759593073499,-431.406,0.0002165,2]
[389159321,1759593073509,-2500.0,0.00021664,2]
[389159322,1759593073518,-180.05809792,0.00021674,2]
[389159323,1759593073528,-225.0,0.00021736,2]
[389159324,1759593073537,-168.0,0.00021767,2]
[389159325,1759593073549,-500.0,0.00021842,2]
[389159326,1759593073558,-587.0,0.00021872,2]
[389159327,1759593073567,-10297.96849943,0.00021895,2]
[389159328,1759593073577,-151.0,0.000219,2]
[389159329,1759593073586,-233.939016,0.000219,2]
[389159330,1759593073596,-250.0,0.000219,2]
[389159331,1759593073605,-250.0,0.000219,2]
[389159332,1759593073616,-250.0,0.000219,2]
[389159333,1759593073626,-162.3,0.000219,2]
[389159334,1759593073636,-151.0,0.00021916,2]
[389159335,1759593073646,-1371.244277,0.00021916,2]
[389159336,1759593073656,-151.0,0.00021916,2]
[389159337,1759593073665,-1371.244277,0.00021916,2]
[389159338,1759593073675,-1371.244277,0.00021916,2]
[389159339,1759593073684,-151.0,0.00021916,2]
[389159340,1759593073694,-288.196885,0.00021916,2]
[389159341,1759593073703,-1371.244277,0.00021916,2]
[389159342,1759593073712,-1506.14616624,0.00021916,2]
[389159343,1759593073722,-500.0,0.00021917,2]
[389159344,1759593073732,-500.0,0.00021917,2]
[389159345,1759593073742,-500.0,0.00021917,2]
[389159346,1759593073751,-500.0,0.00021917,2]
[389159347,1759593073761,-749.21,0.00021917,2]
[389159348,1759593073771,-553.43,0.00021917,2]
[389159349,1759593073780,-500.0,0.00021917,2]
[389159350,1759593073790,-500.0,0.00021917,2]
[389159351,1759593073799,-500.0,0.00021917,2]
[389159352,1759593073808,-500.0,0.00021917,2]
[389159353,1759593073818,-500.0,0.00021917,2]
[389159354,1759593073827,-151.0,0.00021917,2]
[389159355,1759593073836,-500.0,0.00021917,2]
[389159356,1759593073846,-323.81695681,0.00021917,2]
[389159357,1759593073855,-592.33,0.00021917,2]
[389159358,1759593073864,-612.18,0.00021917,2]
[389159359,1759593073873,-500.0,0.00021917,2]
[389159360,1759593073882,-591.35413108,0.00021917,2]
[389159361,1759593073893,-597.37,0.00021917,2]
[389159362,1759593073902,-1880.73,0.00021917,2]
[389159363,1759593073912,-561.95,0.00021917,2]
[389159364,1759593073921,-1220.52,0.00021917,2]
[389159365,1759593073931,-946.68,0.00021917,2]
[389159366,1759593073940,-500.0,0.00021917,2]
[389159367,1759593073950,-500.0,0.00021917,2]
[389159368,1759593073959,-883.67,0.00021917,2]
[389159369,1759593073969,-500.0,0.00021917,2]
[389159370,1759593073978,-500.0,0.00021917,2]
[389159371,1759593073987,-500.0,0.00021917,2]
[389159372,1759593073997,-500.0,0.00021917,2]
[389159373,1759593074006,-500.0,0.00021917,2]
[389159374,1759593074017,-500.0,0.00021917,2]
[389159375,1759593074026,-500.0,0.00021917,2]
[389159376,1759593074036,-500.0,0.00021917,2]
[389159377,1759593074045,-500.0,0.00021917,2]
[389159378,1759593074055,-500.0,0.00021917,2]
[389159379,1759593074065,-500.0,0.00021917,2]
[389159380,1759593074074,-500.0,0.00021917,2]
[389159381,1759593074084,-500.0,0.00021917,2]
[389159382,1759593074094,-500.0,0.00021917,2]
[389159383,1759593074103,-695.58,0.00021917,2]
[389159384,1759593074113,-500.0,0.00021917,2]
[389159385,1759593074123,-500.0,0.00021917,2]
[389159386,1759593074132,-500.0,0.00021917,2]
[389159387,1759593074143,-500.0,0.00021917,2]
[389159388,1759593074152,-811.13,0.00021917,2]
[389159389,1759593074162,-1711.96,0.00021917,2]
[389159390,1759593074172,-704.65,0.00021917,2]
[389159391,1759593074181,-767.26,0.00021917,2]
[389159392,1759593074191,-500.0,0.00021917,2]
[389159393,1759593074201,-500.0,0.00021917,2]
[389159394,1759593074210,-500.0,0.00021917,2]
[389159395,1759593074220,-500.0,0.00021917,2]
[389159396,1759593074230,-924.94,0.00021917,2]
[389159397,1759593074239,-500.0,0.00021917,2]
[389159398,1759593074248,-500.0,0.00021917,2]
[389159399,1759593074258,-823.2,0.00021917,2]
[389159400,1759593074267,-500.0,0.00021917,2]
[389159401,1759593074277,-985.96,0.00021917,2]
[389159402,1759593074287,-627.27,0.00021917,2]
[389159403,1759593074296,-500.0,0.00021917,2]
[389159404,1759593074306,-151.0,0.00021917,2]
[389159405,1759593074315,-151.0,0.00021917,2]
[389159406,1759593074324,-500.0,0.00021917,2]
[389159407,1759593074333,-151.0,0.00021917,2]
[389159408,1759593074342,-177.686308,0.00021917,2]
[389159409,1759593074352,-500.0,0.00021917,2]
[389159410,1759593074362,-532.82,0.00021917,2]
[389159411,1759593074371,-151.0,0.00021917,2]
[389159412,1759593074380,-1949.45,0.00021917,2]
[389159413,1759593074390,-500.0,0.00021917,2]
[389159414,1759593074401,-151.0,0.00021917,2]
[389159415,1759593074413,-151.0,0.00021917,2]
[389159416,1759593074423,-566.96,0.00021917,2]
[389159417,1759593074433,-151.0,0.00021917,2]
[389159418,1759593074443,-500.0,0.00021917,2]
[389159419,1759593074453,-1119.98,0.00021917,2]
[389159420,1759593074463,-500.0,0.00021917,2]
[389159421,1759593074473,-500.0,0.00021917,2]
[389159422,1759593074484,-500.0,0.00021917,2]
[389159423,1759593074495,-500.0,0.00021917,2]
[389159424,1759593074505,-545.28,0.00021917,2]
[389159425,1759593074514,-1261.68,0.00021917,2]
[389159426,1759593074523,-500.0,0.00021917,2]
[389159427,1759593074532,-500.0,0.00021917,2]
[389159428,1759593074542,-3676.63,0.00021917,2]
[389159429,1759593074551,-568.41,0.00021917,2]
[389159430,1759593074560,-637.38,0.00021917,2]
[389159431,1759593074571,-500.0,0.00021917,2]
[389159432,1759593074580,-500.0,0.00021917,2]
[389159433,1759593074589,-500.0,0.00021917,2]
[389159434,1759593074598,-500.0,0.00021917,2]
[389159435,1759593074607,-500.0,0.00021917,2]
[389159436,1759593074617,-548.38,0.00021917,2]
[389159437,1759593074626,-3208.65,0.00021917,2]
[389159438,1759593074635,-635.75948948,0.00021917,2]
[389159439,1759593074646,-1279.41,0.00021917,2]
[389159440,1759593074656,-685.52,0.00021917,2]
[389159441,1759593074665,-643.26,0.00021917,2]
[389159442,1759593074675,-500.0,0.00021917,2]
[389159443,1759593074685,-5094.83,0.00021917,2]
[389159444,1759593074694,-1655.05,0.00021917,2]
[389159445,1759593074704,-1432.98,0.00021917,2]
[389159446,1759593074715,-967.26,0.00021917,2]
[389159447,1759593074725,-500.0,0.00021917,2]
[389159448,1759593074734,-4495.31,0.00021917,2]
[389159449,1759593074743,-4031.17,0.00021917,2]
[389159450,1759593074753,-500.0,0.00021917,2]
[389159451,1759593074762,-5060.59,0.00021917,2]
[389159452,1759593074771,-4043.69,0.00021917,2]
[389159453,1759593074781,-500.0,0.00021917,2]
[389159454,1759593074791,-500.0,0.00021917,2]
[389159455,1759593074800,-1469.96,0.00021917,2]
[389159456,1759593074809,-500.0,0.00021917,2]
[389159457,1759593074818,-632.58,0.00021917,2]
[389159458,1759593074828,-500.0,0.00021917,2]
[389159459,1759593074837,-500.0,0.00021917,2]
[389159460,1759593074846,-1264.74,0.00021917,2]
[389159461,1759593074856,-1639.5,0.00021917,2]
[389159462,1759593074865,-834.51,0.00021917,2]
[389159463,1759593074875,-509.86,0.00021917,2]
[389159464,1759593074884,-573.11,0.00021917,2]
[389159465,1759593074895,-4288.81,0.00021917,2]
[389159466,1759593074904,-2260.03,0.00021917,2]
[389159467,1759593074913,-614.86,0.00021917,2]
[389159468,1759593074922,-572.78,0.00021917,2]
[389159469,1759593074932,-982.23,0.00021917,2]
[389159470,1759593074941,-500.0,0.00021917,2]
[389159471,1759593074951,-861.39,0.00021917,2]
[389159472,1759593074961,-711.3,0.00021917,2]
[389159473,1759593074971,-745.87,0.00021917,2]
[389159474,1759593074980,-1169.22,0.00021917,2]
[389159475,1759593074991,-769.58,0.00021917,2]
[389159476,1759593075000,-1039.1,0.00021917,2]
[389159477,1759593075009,-586.44,0.00021917,2]
[389159478,1759593075018,-500.0,0.00021917,2]
[389159479,1759593075027,-5376.96,0.00021917,2]
[389159480,1759593075037,-2325.11,0.00021917,2]
[389159481,1759593075046,-500.0,0.00021917,2]
[389159482,1759593075060,-1184.17,0.00021917,2]
[389159483,1759593075077,-2810.27,0.00021917,2]
[389159484,1759593075092,-500.0,0.00021917,2]
[389159485,1759593075105,-500.0,0.00021917,2]
[389159486,1759593075119,-628.79,0.00021917,2]
[389159487,1759593075133,-570.71,0.00021917,2]
[389159488,1759593075151,-761.94,0.00021917,2]
[389159489,1759593075166,-764.12,0.00021917,2]
[389159490,1759593075180,-1631.41,0.00021917,2]
[389159491,1759593075195,-1495.3,0.00021917,2]
[389159492,1759593075209,-2092.97,0.00021917,2]
[389159493,1759593075222,-1174.21,0.00021917,2]
[389159494,1759593075235,-500.0,0.00021917,2]
[389159495,1759593075249,-663.28,0.00021917,2]
[389159496,1759593075263,-1969.15,0.00021917,2]
[389159497,1759593075276,-1062.03,0.00021917,2]
[389159498,1759593075287,-680.83,0.00021917,2]
[389159499,1759593075300,-596.45,0.00021917,2]
[389159500,1759593075312,-5236.69,0.00021917,2]
[389159501,1759593075327,-2706.53,0.00021917,2]
[389159502,1759593075341,-1034.699274,0.00021917,2]
[389159503,1759593075355,-1034.699274,0.00021917,2]
[389159504,1759593075369,-197.584055,0.00021917,2]
[389159505,1759593075383,-1034.699274,0.00021917,2]
[389159506,1759593075395,-151.0,0.00021917,2]
[389159507,1759593075406,-722.39,0.00021917,2]
[389159508,1759593075421,-676.08,0.00021917,2]
[389159509,1759593075436,-1034.699274,0.00021917,2]
[389159510,1759593075449,-197.584055,0.00021917,2]
[389159511,1759593075460,-500.0,0.00021917,2]
[389159512,1759593075473,-197.584055,0.00021917,2]
[389159513,1759593075485,-622.6,0.00021917,2]
[389159514,1759593075497,-197.584055,0.00021917,2]
[389159515,1759593075508,-500.0,0.00021917,2]
[389159516,1759593075520,-596.04,0.00021917,2]
[389159517,1759593075532,-770.23,0.00021917,2]
[389159518,1759593075545,-1625.7,0.00021917,2]
[389159519,1759593075556,-1512.93,0.00021917,2]
[389159520,1759593075566,-5806.93,0.00021917,2]
[389159521,1759593075578,-667.12,0.00021917,2]
[389159522,1759593075590,-500.0,0.00021917,2]
[389159523,1759593075602,-1495.05,0.00021917,2]
[389159524,1759593075613,-1031.66,0.00021917,2]
[389159525,1759593075626,-500.0,0.00021917,2]
[389159526,1759593075638,-500.0,0.00021917,2]
[389159527,1759593075651,-1215.184263,0.00021917,2]
[389159528,1759593075663,-151.0,0.00021917,2]
[389159529,1759593075675,-1215.184263,0.00021917,2]
[389159530,1759593075687,-4277.11,0.00021917,2]
[389159531,1759593075699,-1104.08,0.00021917,2]
[389159532,1759593075710,-1215.184263,0.00021917,2]
[389159533,1759593075722,-162.804883,0.00021917,2]
[389159534,1759593075734,-1215.184263,0.00021917,2]
[389159535,1759593075745,-2219.31,0.00021917,2]
[389159536,1759593075757,-959.24,0.00021917,2]
[389159537,1759593075769,-500.0,0.00021917,2]
[389159538,1759593075781,-162.804883,0.00021917,2]
[389159539,1759593075793,-942.05,0.00021917,2]
[389159540,1759593075804,-162.804883,0.00021917,2]
[389159541,1759593075817,-645.52,0.00021917,2]
[389159542,1759593075829,-162.804883,0.00021917,2]
[389159543,1759593075841,-4584.92,0.00021917,2]
[389159544,1759593075852,-500.0,0.00021917,2]
[389159545,1759593075864,-3358.07,0.00021917,2]
[389159546,1759593075875,-500.0,0.00021917,2]
[389159547,1759593075886,-2066.69,0.00021917,2]
[389159548,1759593075899,-179.310448,0.00021917,2]
[389159549,1759593075910,-151.0,0.00021918,2]
[389159550,1759593075922,-151.0,0.00021918,2]
[389159551,1759593075934,-151.0,0.00021918,2]
[389159552,1759593075947,-189.33502,0.00021918,2]
[389159553,1759593075958,-151.0,0.00021918,2]
[389159554,1759593075970,-151.0,0.00021918,2]
[389159555,1759593075981,-151.0,0.00021918,2]
[389159556,1759593075992,-151.0,0.00021918,2]
[389159557,1759593076005,-151.0,0.00021918,2]
[389159558,1759593076016,-151.0,0.00021918,2]
[389159559,1759593076028,-284.504356,0.00021918,2]
[389159560,1759593076040,-500.0,0.00021918,2]
[389159561,1759593076051,-343.002418,0.00021918,2]
[389159562,1759593076064,-343.002418,0.00021918,2]
[389159563,1759593076075,-343.002418,0.00021918,2]
[389159564,1759593076086,-343.002418,0.00021918,2]
[389159565,1759593076097,-343.002418,0.00021918,2]
[389159566,1759593076109,-343.002418,0.00021918,2]
[389159567,1759593076120,-343.002418,0.00021918,2]
[389159568,1759593076132,-343.002418,0.00021918,2]
[389159569,1759593076143,-343.002418,0.00021918,2]
[389159570,1759593076154,-343.002418,0.00021918,2]
[389159571,1759593076166,-343.002418,0.00021918,2]
[389159572,1759593076177,-343.002418,0.00021918,2]
[389159573,1759593076189,-343.002418,0.00021918,2]
[389159574,1759593076200,-343.002418,0.00021918,2]
[389159575,1759593076212,-343.002418,0.00021918,2]
[389159576,1759593076224,-343.002418,0.00021918,2]
[389159577,1759593076235,-151.824999,0.00021918,7]
[389159578,1759593076247,-460.0,0.00021925,2]
[389159579,1759593076259,-2500.0,0.00021929,2]
[389159580,1759593076270,-2500.0,0.00021929,2]
[389159581,1759593076280,-2500.0,0.00021929,2]
[389159582,1759593076289,-249.264531,0.00021929,7]
[389159583,1759593076298,-151.0,0.00021929,7]
[389159584,1759593076307,-151.0,0.00021929,7]
[389159585,1759593076315,-1500.0,0.00021936,2]
[389159586,1759593076325,-1500.0,0.00021936,2]
[389159587,1759593076334,-168.0,0.00021949,2]
[389159588,1759593076343,-1500.0,0.0002195,2]
[389159589,1759593076353,-225.0,0.00021981,2]
[389159590,1759593076362,-225.0,0.00021988,2]
[389159591,1759593076372,-9674.27,0.00022,2]
[389159592,1759593076381,-3072.72,0.00022,2]
[389159593,1759593076391,-225.0,0.0002203,2]
[389159594,1759593076402,-157.21954893,0.00022053,2]
[389159595,1759593076415,-814.30769203,0.00022055,8]
[389159596,1759593076425,-1500.0,0.00022057,2]
[389159597,1759593076434,-1500.0,0.00022057,2]
[389159598,1759593076445,-1000.0,0.00022057,2]
[389159599,1759593076455,-1007.60577646,0.00022062,2]
[389159600,1759593076464,-1000.0,0.00022062,2]
[389159601,1759593076473,-1000.0,0.00022062,2]
[389159602,1759593076484,-1000.0,0.00022062,2]
[389159603,1759593076493,-1000.0,0.00022062,2]
[389159604,1759593076503,-1000.0,0.00022062,2]
[389159605,1759593076512,-1000.0,0.00022062,2]
[389159606,1759593076523,-757.69046467,0.00022062,2]
[389159607,1759593076535,-1000.0,0.00022062,2]
[389159608,1759593076545,-1000.0,0.00022062,2]
[389159609,1759593076554,-1000.0,0.00022062,2]
[389159610,1759593076563,-1115.91246736,0.00022062,2]
[389159611,1759593076572,-1000.0,0.00022062,2]
[389159612,1759593076582,-1000.0,0.00022062,2]
[389159613,1759593076592,-1545.74064434,0.00022073,2]
[389159614,1759593076602,-428.53236321,0.00022073,2]
[389159615,1759593076612,-411.3014004,0.00022073,2]
[389159616,1759593076626,-2199.0,0.00022085,2]
[389159617,1759593076638,-500.0,0.00022191,3]
[389159618,1759593076648,-500.0,0.00022191,3]
[389159619,1759593076658,-500.0,0.00022191,3]
[389159620,1759593076668,-500.0,0.00022191,3]
[389159621,1759593076677,-749.21,0.00022191,3]
[389159622,1759593076687,-553.43,0.00022191,3]
[389159623,1759593076696,-500.0,0.00022191,3]
[389159624,1759593076706,-500.0,0.00022191,3]
[389159625,1759593076716,-151.0,0.00022191,7]
[389159626,1759593076725,-151.0,0.00022191,7]
[389159627,1759593076734,-151.0,0.00022191,7]
[389159628,1759593076744,-151.0,0.00022191,7]
[389159629,1759593076753,-151.0,0.00022191,7]
[389159630,1759593076763,-151.0,0.00022191,7]
[389159631,1759593076772,-151.0,0.00022191,7]
[389159632,1759593076781,-151.0,0.00022191,7]
[389159633,1759593076791,-500.0,0.00022191,3]
[389159634,1759593076800,-500.0,0.00022191,3]
[389159635,1759593076809,-500.0,0.00022191,3]
[389159636,1759593076818,-500.0,0.00022191,3]
[389159637,1759593076828,-592.33,0.00022191,3]
[389159638,1759593076837,-612.18,0.00022191,3]
[389159639,1759593076846,-500.0,0.00022191,3]
[389159640,1759593076856,-597.37,0.00022191,3]
[389159641,1759593076866,-1880.73,0.00022191,3]
[389159642,1759593076875,-561.95,0.00022191,3]
[389159643,1759593077235,-1220.52,0.00022191,3]
[389159644,1759593077253,-946.68,0.00022191,3]
[389159645,1759593077268,-500.0,0.00022191,3]
[389159646,1759593077277,-500.0,0.00022191,3]
[389159647,1759593077287,-883.67,0.00022191,3]
[389159648,1759593077297,-500.0,0.00022191,3]
[389159649,1759593077306,-500.0,0.00022191,2]
[389159650,1759593077315,-500.0,0.00022191,3]
[389159651,1759593077323,-500.0,0.00022191,3]
[389159652,1759593077333,-695.58,0.00022191,3]
[389159653,1759593077342,-500.0,0.00022191,3]
[389159654,1759593077352,-500.0,0.00022191,3]
[389159655,1759593077361,-500.0,0.00022191,3]
[389159656,1759593077370,-648.88081839,0.00022191,3]
[389159657,1759593077379,-811.13,0.00022191,3]
[389159658,1759593077388,-1711.96,0.00022191,3]
[389159659,1759593077398,-704.65,0.00022191,3]
[389159660,1759593077410,-767.26,0.00022191,3]
[389159661,1759593077423,-500.0,0.00022191,3]
[389159662,1759593077433,-500.0,0.00022191,3]
[389159663,1759593077443,-500.0,0.00022191,3]
[389159664,1759593077453,-500.0,0.00022191,3]
[389159665,1759593077463,-924.94,0.00022191,3]
[389159666,1759593077473,-500.0,0.00022191,3]
[389159667,1759593077482,-161.60881409,0.00022191,3]
[389159668,1759593077491,-823.2,0.00022191,3]
[389159669,1759593077500,-500.0,0.00022191,3]